[Event "Israeli Open Championship 2019"]
[Site "Jerusalem"]
[Date "2019.12.13"]
[Round "2.13"]
[White "Cohen Revivo, Shoham"]
[Black "Nissim, Yonatan"]
[Result "1-0"]
[ECO "B38"]
[WhiteElo "2261"]
[BlackElo "2040"]
[Annotator "RC"]
[PlyCount "165"]
[EventDate "2019.12.12"]
[EventType "swiss"]
[EventCountry "ISR"]
[SourceTitle "playchess.com"]
[Source "ChessBase"]
[SourceQuality "1"]
[TimeControl "5400+30"]

1. e4 {[%emt 0:00:00]} c5 {[%emt 0:02:40]} 2. Nf3 {[%emt 0:00:00]} g6 {[%emt 0:00:31]} 3. d4 {[%emt 0:00:30]} cxd4 {[%emt 0:00:08]} 4. Nxd4 {[%emt 0:00:06]} Bg7 {[%emt 0:00:16]} 5. c4 {[%emt 0:00:08]} Nc6 {[%emt 0:00:16]} 6. Be3 {[%emt 0:00:20]} Nf6 {[%emt 0:00:16]} 7. Nc3 {[%emt 0:00:09]} O-O {[%emt 0:00:22]} 8. Be2 {[%emt 0:00:10]} d6 {[%emt 0:01:24]} 9. O-O {[%emt 0:01:14]} Bd7 {[%emt 0:00:41]} 10. Qd2 {[%emt 0:02:05]} Nxd4 {[%emt 0:00:55]} 11. Bxd4 {[%emt 0:00:13]} Bc6 {[%emt 0:00:06]} 12. f3 {[%emt 0:00:18]} a5 {[%emt 0:00:31]} 13. Rfd1 {[%emt 0:01:07]} Nd7 {[%emt 0:00:52]} 14. Be3 {[%emt 0:00:12]} a4 {[%emt 0:04:49]} 15. Rac1 {[%emt 0:00:42]} Nc5 {[%emt 0:01:03]} 16. Nd5 {[%emt 0:03:16]} Bxd5 {[%emt 0:07:00]} 17. cxd5 {[%emt 0:00:41]} Qa5 {[%emt 0:08:59]} 18. Qxa5 {[%emt 0:01:47]} Rxa5 {[%emt 0:00:03]} 19. Rc2 {[%emt 0:00:06]} b6 {[%emt 0:16:14]} 20. Bd2 {[%emt 0:00:19]} Ra7 {[%emt 0:03:09]} 21. Bb5 {[%emt 0:00:38]} Rfa8 {[%emt 0:06:22]} 22. Bc6 {[%emt 0:00:22]} Rb8 {[%emt 0:00:54]} 23. Be3 {[%emt 0:00:10]} h5 {[%emt 0:08:28]} 24. Kf1 {[%emt 0:02:23]} Kh7 {[%emt 0:03:38]} 25. Ke2 {[%emt 0:00:07]} Bh6 {[%emt 0:01:28]} 26. Bf2 {[%emt 0:03:29]} g5 {[%emt 0:00:43]} 27. Rd4 {[%emt 0:01:42]} a3 {[%emt 0:07:39]} 28. b4 {[%emt 0:02:39]} Bg7 {[%emt 0:03:58]} 29. bxc5 {[%emt 0:00:42]} Bxd4 {[%emt 0:00:08]} 30. Bxd4 {[%emt 0:00:12]} bxc5 {[%emt 0:00:41]} 31. Be3 {[%emt 0:03:12]} Kg6 {[%emt 0:00:15]} 32. Bc1 {[%emt 0:01:13]} Rb1 {[%emt 0:03:05]} 33. Kd2 {[%emt 0:02:13]} Ra6 {[%emt 0:02:20]} 34. Kc3 {[%emt 0:00:54]} h4 {[%emt 0:02:00]} 35. h3 {[%emt 0:00:19]} e6 {[%emt 0:02:17]} 36. e5 {[%emt 0:07:45]} exd5 {[%emt 0:03:39]} 37. Bxd5 {[%emt 0:00:11]} dxe5 {[%emt 0:00:24]} 38. Be3 {[%emt 0:01:29]} Ra5 {[%emt 0:01:34]} 39. Re2 {[%emt 0:02:40]} f5 {[%emt 0:02:28]} 40. Bc4 {[%emt 0:02:38]} Kf6 {[%emt 0:02:50]} 41. Rd2 {[%emt 0:02:55]} Rc1+ {[%emt 0:01:01]} 42. Kb3 {[%emt 0:00:23]} Rb1+ {[%emt 0:00:18]} 43. Kc2 {[%emt 0:00:42]} Rb2+ {[%emt 0:00:05]} 44. Kc3 {[%emt 0:00:05]} Rxd2 {[%emt 0:01:01]} 45. Bxd2 {[%emt 0:00:29]} e4 {[%emt 0:00:55]} 46. fxe4 {[%emt 0:00:04]} fxe4 {[%emt 0:00:34]} 47. Be3 {[%emt 0:00:17]} Kf5 {[%emt 0:00:49]} 48. Be2 {[%emt 0:00:48]} Kf6 {[%emt 0:00:44]} 49. Kc4 {[%emt 0:00:40]} Kf5 {[%emt 0:00:37]} 50. Kd5 {[%emt 0:02:24]} Ra8 {[%emt 0:00:52]} 51. Bg4+ {[%emt 0:02:26]} Kf6 {[%emt 0:00:02]} 52. Bxc5 {[%emt 0:00:43]} Rd8+ {[%emt 0:02:05]} 53. Bd6 {[%emt 0:01:49]} e3 {[%emt 0:00:21]} 54. Be2 {[%emt 0:00:48]} Kf5 {[%emt 0:01:10]} 55. Bd3+ {[%emt 0:00:05]} Kf6 {[%emt 0:00:02]} 56. Be2 {[%emt 0:08:54]} Kf5 {[%emt 0:00:03]} 57. Bg4+ {[%emt 0:00:06]} Kf6 {[%emt 0:00:07]} 58. Kc6 {[%emt 0:00:35]} Re8 {[%emt 0:00:19]} 59. Be2 {[%emt 0:00:07]} Ke6 {[%emt 0:02:02]} 60. Kc7 {[%emt 0:04:52]} Kd5 {[%emt 0:00:05]} 61. Bxa3 {[%emt 0:03:19]} Kd4 {[%emt 0:00:35]} 62. Bb2+ {[%emt 0:00:58]} Ke4 {[%emt 0:00:34]} 63. a4 {[%emt 0:01:27]} Ra8 {[%emt 0:01:00]} 64. Bb5 {[%emt 0:05:10]} Rf8 {[%emt 0:00:09]} 65. Bc3 {[%emt 0:07:42]} Rf2 {[%emt 0:00:23]} 66. Kb6 {[%emt 0:00:35]} Rc2 {[%emt 0:00:37]} 67. Bb4 {[%emt 0:00:27]} Rb2 {[%emt 0:00:33]} 68. Kc5 {[%emt 0:00:11]} e2 {[%emt 0:00:39]} 69. a5 {[%emt 0:04:40]} Ke3 {[%emt 0:00:50]} 70. a6 {[%emt 0:00:42]} Rxb4 {[%emt 0:00:13]} 71. Bxe2 {[%emt 0:00:07]} Ra4 {[%emt 0:00:11]} 72. Bb5 {[%emt 0:00:34]} Ra2 {[%emt 0:00:54]} 73. Kb6 {[%emt 0:00:26]} Kf4 {[%emt 0:00:23]} 74. a7 {[%emt 0:00:14]} Rxa7 {[%emt 0:00:35]} 75. Kxa7 {[%emt 0:00:03]} Kg3 {[%emt 0:00:46]} 76. Bc6 {[%emt 0:00:14]} g4 {[%emt 0:00:45]} 77. hxg4 {[%emt 0:00:09]} Kxg4 {[%emt 0:00:08]} 78. Bd7+ {[%emt 0:00:07]} Kg3 {[%emt 0:00:12]} 79. Bh3 {[%emt 0:00:06]} Kf4 {[%emt 0:00:50]} 80. Kb6 {[%emt 0:00:02]} Ke5 {[%emt 0:00:14]} 81. Kc5 {[%emt 0:00:01]} Ke4 {[%emt 0:00:24]} 82. Kc4 {[%emt 0:00:11]} Ke3 {[%emt 0:00:07]} 83. Kd5 {[%emt 0:00:06]} 1-0

[Event "Israeli Open Championship 2019"]
[Site "Jerusalem"]
[Date "2019.12.13"]
[Round "2.16"]
[White "Klein, Achi"]
[Black "Gruzman, Ilya"]
[Result "0-1"]
[ECO "B12"]
[WhiteElo "1622"]
[BlackElo "1889"]
[Annotator "NA RC"]
[PlyCount "58"]
[EventDate "2019.12.12"]
[EventType "swiss"]
[EventCountry "ISR"]
[SourceTitle "playchess.com"]
[Source "ChessBase"]
[SourceQuality "1"]
[TimeControl "5400+30"]

{[%evp 8,58,12,19,14,0,0,-6,20,1,13,0,0,2,14,0,32767,32767,32767,32767,32767,-707,-229,-577,-276,-225,-230,-237,-225,-221,-207,-236,32767,32767,32767,-323,-247,-248,-245,-514,32767,32767,32767,-831,-843,-1084,-1133,-1225,-1261,-29992,-29984,-29955,-29985]} 1. e4 {[%emt 0:00:00]} c6 {[%emt 0:00:00]} 2. d4 {[%emt 0:00:00]} d5 {[%emt 0:00:00]} 3. e5 {[%emt 0:00:02]} Bf5 {[%emt 0:00:00]} 4. h4 {[%emt 0:00:12]} h5 {[%emt 0:00:14]} 5. c4 {[%emt 0:00:12]} e6 {[%emt 0:00:04]} 6. Nc3 {[%emt 0:00:20]} Ne7 {[%emt 0:00:09]} 7. Bd3 {[%emt 0:01:10] B12: Caro-Kann: Advance Variation} (7. Nge2 Nd7 8. Ng3 Bg6 9. Bg5 Qb6 10. Rc1 Qxb2 11. Bd3 Bxd3 12. Qxd3 dxc4 13. Qxc4 Nb6 14. Qd3 Ned5 {½-½ (29) Perunovic,M (2569)-Donchenko,A (2631) Barcelona 2019}) 7... Bxd3 {[%emt 0:03:03]} 8. Qxd3 {[%emt 0:00:15]} Nf5 {[%emt 0:04:59]} 9. Nf3 {[%emt 0:03:31]} Be7 {[%emt 0:02:48]} 10. g3 {[%emt 0:03:31]} dxc4 {[%emt 0:01:45]} 11. Qxc4 {[%emt 0:01:16]} Nd7 {[%emt 0:02:01]} 12. Ne4 $146 {[%emt 0:07:05]} ({Predecessor:} 12. O-O Nb6 13. Qd3 O-O 14. Rd1 Nd5 {1-0 (51) Terbe,J (2183)-Bakin,A (2176) Budapest 2016}) 12... Nb6 {[%emt 0:03:01]} 13. Qc3 {[%emt 0:04:28]} Qd5 {[%emt 0:01:50]} 14. Nc5 $2 {[%emt 0:11:53]} (14. Qd3 $15) 14... O-O-O $2 {[%emt 0:03:56]} (14... Bxc5 15. dxc5 Qe4+ 16. Kf1 Na4) 15. Nb3 $2 {[%emt 0:05:51]} (15. O-O {nothing else works.}) 15... Bb4 {[%emt 0:02:01]} (15... Qe4+ $142 16. Kf1 Nd5) 16. Qxb4 {[%emt 0:01:28]} Qe4+ {[%emt 0:01:03]} 17. Kf1 {[%emt 0:13:14]} Qxf3 {[%emt 0:00:23] Decoy} 18. Rg1 {[%emt 0:01:50]} Qd3+ {[%emt 0:04:08]} 19. Kg2 {[%emt 0:02:29]} Nxd4 {[%emt 0:04:13]} 20. Nxd4 {[%emt 0:04:16]} Rxd4 {[%emt 0:01:31]} 21. Qa5 {[%emt 0:03:02]} (21. Qe7 {was worth a try.} Qe4+ 22. Kh2) 21... Ra4 {[%emt 0:01:06]} 22. Qc5 {[%emt 0:00:40]} Nd7 {[%emt 0:01:29]} 23. Qe7 $2 {[%emt 0:02:12]} (23. Qe3 Qd5+ {[%mdl 64] Double Attack} 24. Qf3) 23... Nxe5 {[%emt 0:01:12]} 24. Bf4 {[%emt 0:01:01]} Qf3+ {[%emt 0:01:59]} 25. Kf1 {[%emt 0:06:40]} Rxf4 {[%emt 0:00:12]} 26. gxf4 {[%emt 0:00:56] [#]} Nd3 $1 {[%emt 0:00:34] Double Attack} 27. Rg2 {[%emt 0:01:58]} Nxf4 {[%emt 0:00:11]} 28. Rxg7 {[%emt 0:02:07]} Qh3+ {[%emt 0:00:49]} 29. Ke1 {[%emt 0:02:29]} Qd3 {[%emt 0:00:10]} 0-1

[Event "Israeli Open Championship 2019"]
[Site "Jerusalem"]
[Date "2019.12.13"]
[Round "2.17"]
[White "Bulkovstein, David"]
[Black "Kfir, Itzhak"]
[Result "1-0"]
[ECO "B23"]
[WhiteElo "1889"]
[BlackElo "1528"]
[Annotator "NA RC"]
[PlyCount "55"]
[EventDate "2019.12.12"]
[EventType "swiss"]
[EventCountry "ISR"]
[SourceTitle "playchess.com"]
[Source "ChessBase"]
[SourceQuality "1"]
[TimeControl "5400+30"]

{[%evp 8,52,12,27,12,17,8,19,21,30,58,25,46,32767,32767,32767,30,-2,-3,12,17,-15,23,-8,3,-4,32767,0,0,-14,38,23,86,62,158,139,32767,191,608,588,579,366,830,984,1266,1465,1697]} 1. e4 {[%emt 0:00:00]} c5 {[%emt 0:00:00]} 2. Nc3 {[%emt 0:00:00]} d6 {[%emt 0:00:07]} 3. g3 {[%emt 0:00:00]} Nf6 {[%emt 0:00:21]} 4. Bg2 {[%emt 0:00:00]} e5 {[%emt 0:00:51]} (4... Nc6 5. d3 g6 6. Nge2 h5 7. h3 Nd4 8. Be3 e5 9. Qd2 Qa5 10. O-O Be7 11. f4 h4 12. fxe5 Nxe2+ 13. Qxe2 Nh5 {1-0 (48) Piorun,K (2625)-Lewtak,D (2411) Trzcianka 2018}) 5. d3 {[%emt 0:00:16]} Be7 {[%emt 0:00:14]} 6. Nge2 {[%emt 0:01:07] B23: Closed Sicilian: Lines without g3} O-O {[%emt 0:00:19]} 7. O-O {[%emt 0:00:09]} Be6 {[%emt 0:02:23]} 8. f4 $146 {[%emt 0:00:55]} ({Predecessor:} 8. Be3 Nc6 9. a3 a6 10. Qd2 b5 11. Na2 Rc8 {0-1 (21) Lantman,R-De Oliveira,J Joao Pessoa 2011}) 8... exf4 {[%emt 0:00:59]} 9. gxf4 {[%emt 0:06:30]} Nc6 {[%emt 0:07:22]} 10. Kh1 {[%emt 0:12:46]} Rc8 {[%emt 0:05:26]} 11. f5 {[%emt 0:09:45]} Bd7 {[%emt 0:00:10]} 12. Be3 {[%emt 0:07:56]} Ne5 {[%emt 0:06:06]} 13. Nf4 {[%emt 0:08:25]} Bc6 {[%emt 0:02:19]} 14. Qe1 {[%emt 0:11:47]} Nfg4 {[%emt 0:03:19]} 15. Bg1 {[%emt 0:00:53]} Bh4 {[%emt 0:01:13]} 16. Qe2 {[%emt 0:00:33]} Qg5 {[%emt 0:10:17]} 17. Nh3 {[%emt 0:05:02]} Qe7 {[%emt 0:12:10]} 18. Bf3 {[%emt 0:11:57]} h5 {[%emt 0:01:28]} 19. Be3 {[%emt 0:02:29]} f6 {[%emt 0:11:35]} (19... b5 $11) 20. Bxg4 {[%emt 0:03:13]} Nxg4 {[%emt 0:00:36]} (20... hxg4 $14 21. Nf4 Qd7) 21. Nf4 {[%emt 0:02:35]} Be8 {[%emt 0:08:26]} (21... Nxe3 {might work better.} 22. Ng6 (22. Qxe3 Bg5 $16) 22... Qc7) 22. Ne6 {[%emt 0:01:47]} Rf7 $2 {[%emt 0:02:45]} (22... g5 23. Nd5 (23. Nxf8 Qxf8 24. Nd5 Bc6 $18) 23... Qf7 24. Nxf8 Qxf8) 23. Nd5 {[%emt 0:00:09]} Qd7 {[%emt 0:00:32]} 24. Bd2 {[%emt 0:02:06]} Qc6 $2 {[%emt 0:03:01]} (24... Re7 25. Qf3 Rxe6) 25. h3 {[%emt 0:01:21]} Ne5 {[%emt 0:04:54]} 26. Qxh5 $18 {[%emt 0:00:48]} Bg5 {[%emt 0:01:57]} 27. Bxg5 {[%emt 0:00:46]} fxg5 {[%emt 0:14:40]} 28. Nxg5 {[%emt 0:10:45]} 1-0

[Event "Israeli Open Championship 2019"]
[Site "Jerusalem"]
[Date "2019.12.13"]
[Round "2.18"]
[White "Levitan, Ronit"]
[Black "Blumenthal, Michael"]
[Result "1-0"]
[ECO "B22"]
[WhiteElo "1876"]
[BlackElo "1460"]
[Annotator "NA RC"]
[PlyCount "35"]
[EventDate "2019.12.12"]
[EventType "swiss"]
[EventCountry "ISR"]
[SourceTitle "playchess.com"]
[Source "ChessBase"]
[SourceQuality "1"]
[TimeControl "5400+30"]

{[%evp 8,34,0,-1,54,17,46,-29,42,25,79,61,133,32767,32767,32767,32767,32767,75,79,246,322,452,481,695,734,670,779,858]} 1. e4 {[%emt 0:00:00]} c5 {[%emt 0:00:00]} 2. c3 {[%emt 0:00:00]} Nf6 {[%emt 0:00:00]} 3. e5 {[%emt 0:00:00]} Nd5 {[%emt 0:00:09]} 4. d4 {[%emt 0:00:00]} cxd4 {[%emt 0:00:14]} 5. cxd4 {[%emt 0:00:00]} g6 {[%emt 0:00:21]} 6. Nf3 {[%emt 0:02:25]} Bg7 {[%emt 0:00:45]} 7. h4 {[%emt 0:00:12]} h5 {[%emt 0:01:11]} (7... d6 $11) 8. Qb3 {[%emt 0:09:26]} e6 {[%emt 0:02:47]} 9. Nc3 {[%emt 0:03:02]} Ne7 {[%emt 0:03:16]} 10. Ne4 {[%emt 0:02:53]} Nf5 {[%emt 0:03:50]} 11. Bg5 {[%emt 0:14:35]} Qa5+ {[%emt 0:04:25]} 12. Bd2 {[%emt 0:00:08]} Qd8 {[%emt 0:01:17]} 13. d5 {[%emt 0:08:20]} d6 $2 {[%emt 0:11:32]} (13... O-O $16) 14. Bb5+ {[%emt 0:01:42]} Bd7 {[%emt 0:03:32]} 15. dxe6 {[%emt 0:01:12]} Bxb5 {[%emt 0:04:48]} (15... fxe6 $142 16. Nfg5 Nc6 17. Nxe6 Qe7) 16. Qxb5+ {[%emt 0:00:35] Double Attack} Nc6 {[%emt 0:00:08]} 17. Qxb7 {[%emt 0:00:44]} Nce7 $18 {[%emt 0:01:26]} 18. exd6 {[%emt 0:53:46]} 1-0

[Event "Israeli Open Championship 2019"]
[Site "Jerusalem"]
[Date "2019.12.15"]
[Round "3.3"]
[White "Mikhalevski, Victor"]
[Black "Gorodetzky, Matan"]
[Result "1-0"]
[ECO "D30"]
[WhiteElo "2559"]
[BlackElo "2284"]
[Annotator "RC"]
[PlyCount "53"]
[EventDate "2019.12.12"]
[EventType "swiss"]
[EventCountry "ISR"]
[SourceTitle "playchess.com"]
[Source "ChessBase"]
[SourceQuality "1"]
[TimeControl "5400+30"]

1. c4 {[%emt 0:00:00]} e6 {[%emt 0:00:10]} 2. d4 {[%emt 0:00:00]} d5 {[%emt 0:00:06]} 3. Nf3 {[%emt 0:00:00]} c5 {[%emt 0:00:37]} 4. cxd5 {[%emt 0:00:23]} exd5 {[%emt 0:00:06]} 5. Bg5 {[%emt 0:00:15]} Be7 {[%emt 0:00:43]} 6. Bxe7 {[%emt 0:00:10]} Nxe7 {[%emt 0:00:06]} 7. dxc5 {[%emt 0:00:10]} Qa5+ {[%emt 0:00:41]} 8. Nc3 {[%emt 0:00:07]} Qxc5 {[%emt 0:00:36]} 9. e3 {[%emt 0:00:08]} Nbc6 {[%emt 0:01:08]} 10. Qa4 {[%emt 0:00:22]} O-O {[%emt 0:07:41]} 11. Bb5 {[%emt 0:01:04]} Rd8 {[%emt 0:10:56]} 12. Rd1 {[%emt 0:00:25]} Be6 {[%emt 0:06:29]} 13. O-O {[%emt 0:01:06]} a6 {[%emt 0:04:10]} 14. Bxc6 {[%emt 0:03:02]} Nxc6 {[%emt 0:02:41]} 15. Rd2 {[%emt 0:00:15]} Qc4 {[%emt 0:05:38]} 16. Rc1 {[%emt 0:04:37]} Qxa4 {[%emt 0:11:54]} 17. Nxa4 {[%emt 0:00:59]} Na5 {[%emt 0:05:26]} 18. b3 {[%emt 0:04:18]} Rac8 {[%emt 0:02:38]} 19. Rcd1 {[%emt 0:02:17]} b5 {[%emt 0:01:05]} 20. Nb6 {[%emt 0:02:39]} Rc6 {[%emt 0:08:23]} 21. Nxd5 {[%emt 0:00:14]} Kf8 {[%emt 0:00:04]} 22. e4 {[%emt 0:12:56]} Nb7 {[%emt 0:01:49]} 23. Nd4 {[%emt 0:04:12]} Rcd6 {[%emt 0:03:07]} 24. Nc7 {[%emt 0:08:33]} Bc8 {[%emt 0:02:22]} 25. e5 {[%emt 0:00:51]} Rb6 {[%emt 0:02:39]} 26. f4 {[%emt 0:08:02]} Ke7 {[%emt 0:05:33]} 27. Nf5+ {[%emt 0:02:37]} 1-0

[Event "Israeli Open Championship 2019"]
[Site "Jerusalem"]
[Date "2019.12.15"]
[Round "3.4"]
[White "Flom, Gabriel"]
[Black "Cohen Revivo, Shoham"]
[Result "1-0"]
[ECO "D51"]
[WhiteElo "2506"]
[BlackElo "2261"]
[Annotator "RC"]
[PlyCount "91"]
[EventDate "2019.12.12"]
[EventType "swiss"]
[EventCountry "ISR"]
[SourceTitle "playchess.com"]
[Source "ChessBase"]
[SourceQuality "1"]
[TimeControl "5400+30"]

1. d4 {[%emt 0:00:59]} d5 {[%emt 0:00:00]} 2. c4 {[%emt 0:00:08]} c6 {[%emt 0:00:00]} 3. Nc3 {[%emt 0:00:05]} Nf6 {[%emt 0:00:00]} 4. Nf3 {[%emt 0:00:04]} e6 {[%emt 0:00:00]} 5. Bg5 {[%emt 0:00:28]} Nbd7 {[%emt 0:00:29]} 6. Qc2 {[%emt 0:01:59]} dxc4 {[%emt 0:02:23]} 7. e4 {[%emt 0:00:32]} b5 {[%emt 0:00:05]} 8. e5 {[%emt 0:00:34]} h6 {[%emt 0:00:06]} 9. Bh4 {[%emt 0:01:03]} g5 {[%emt 0:00:05]} 10. Nxg5 {[%emt 0:18:42]} hxg5 {[%emt 0:00:09]} 11. Bxg5 {[%emt 0:00:02]} Bb4 {[%emt 0:01:32]} 12. exf6 {[%emt 0:05:32]} Nb6 {[%emt 0:00:28]} 13. O-O-O {[%emt 0:04:50]} Bxc3 {[%emt 0:00:24]} 14. Qxc3 {[%emt 0:00:09]} Nd5 {[%emt 0:00:17]} 15. Qa3 {[%emt 0:00:03]} b4 {[%emt 0:06:07]} 16. Qa4 {[%emt 0:03:11]} c3 {[%emt 0:00:06]} 17. Bc4 {[%emt 0:10:00]} Bd7 {[%emt 0:02:00]} 18. bxc3 {[%emt 0:18:57]} bxc3 {[%emt 0:00:07]} 19. Bxd5 {[%emt 0:04:44]} cxd5 {[%emt 0:00:07]} 20. Qa3 {[%emt 0:00:02]} Rb8 {[%emt 0:00:23]} 21. Rd3 {[%emt 0:07:57]} a5 {[%emt 0:01:55]} 22. Rxc3 {[%emt 0:03:07]} Rb4 {[%emt 0:00:07]} 23. Rb3 {[%emt 0:01:05]} Qc7+ {[%emt 0:13:09]} 24. Kb1 {[%emt 0:06:38]} Qc4 {[%emt 0:02:17]} 25. Rxb4 {[%emt 0:03:18]} axb4 {[%emt 0:00:02]} 26. Qg3 {[%emt 0:04:48]} Qc3 {[%emt 0:09:06]} 27. Qxc3 {[%emt 0:00:53]} bxc3 {[%emt 0:00:01]} 28. Kc2 {[%emt 0:01:17]} Ba4+ {[%emt 0:00:18]} 29. Kxc3 {[%emt 0:00:03]} Kd7 {[%emt 0:00:03]} 30. h4 {[%emt 0:01:52]} Rc8+ {[%emt 0:00:08]} 31. Kd3 {[%emt 0:01:06]} Bc2+ {[%emt 0:00:30]} 32. Kd2 {[%emt 0:00:45]} Be4 {[%emt 0:00:42]} 33. f3 {[%emt 0:00:12]} Rc2+ {[%emt 0:00:48]} 34. Ke3 {[%emt 0:00:00]} Bh7 {[%emt 0:00:19]} 35. Rg1 {[%emt 0:01:39]} Rxa2 {[%emt 0:00:47]} 36. Bf4 {[%emt 0:00:07]} Kc6 {[%emt 0:07:39]} 37. Be5 {[%emt 0:00:14]} Kb5 {[%emt 0:00:22]} 38. g4 {[%emt 0:00:51]} Ra3+ {[%emt 0:01:49]} 39. Kf4 {[%emt 0:00:03]} Kc4 {[%emt 0:00:04]} 40. Re1 {[%emt 0:01:29]} Bc2 {[%emt 0:02:22]} 41. h5 {[%emt 0:00:26]} Ra8 {[%emt 0:00:16]} 42. Rc1 {[%emt 0:00:29]} Kd3 {[%emt 0:00:30]} 43. Rxc2 {[%emt 0:00:06]} Kxc2 {[%emt 0:00:11]} 44. g5 {[%emt 0:00:01]} Rg8 {[%emt 0:01:04]} 45. g6 {[%emt 0:00:08]} fxg6 {[%emt 0:00:05]} 46. hxg6 {[%emt 0:01:10]} 1-0

[Event "Israeli Open Championship 2019"]
[Site "Jerusalem"]
[Date "2019.12.15"]
[Round "3.7"]
[White "Golberg, Igor"]
[Black "Sokolovsky, Yahli"]
[Result "1-0"]
[ECO "E62"]
[WhiteElo "2156"]
[BlackElo "2045"]
[Annotator "RC"]
[PlyCount "75"]
[EventDate "2019.12.12"]
[EventType "swiss"]
[EventCountry "ISR"]
[SourceTitle "playchess.com"]
[Source "ChessBase"]
[SourceQuality "1"]
[TimeControl "5400+30"]

1. d4 {[%emt 0:00:00]} Nf6 {[%emt 0:00:00]} 2. c4 {[%emt 0:00:00]} g6 {[%emt 0:00:00]} 3. Nc3 {[%emt 0:00:04]} Bg7 {[%emt 0:00:00]} 4. Nf3 {[%emt 0:00:15]} O-O {[%emt 0:00:02]} 5. g3 {[%emt 0:00:04]} d6 {[%emt 0:00:24]} 6. Bg2 {[%emt 0:00:06]} Nc6 {[%emt 0:00:27]} 7. O-O {[%emt 0:00:12]} e5 {[%emt 0:00:20]} 8. dxe5 {[%emt 0:00:26]} dxe5 {[%emt 0:00:06]} 9. Bg5 {[%emt 0:00:12]} Be6 {[%emt 0:00:09]} 10. Nd2 {[%emt 0:00:15]} h6 {[%emt 0:02:07]} 11. Bxf6 {[%emt 0:00:11]} Bxf6 {[%emt 0:06:25]} 12. Nde4 {[%emt 0:00:09]} Be7 {[%emt 0:02:06]} 13. Qc1 {[%emt 0:00:11]} Kg7 {[%emt 0:02:49]} 14. Rd1 {[%emt 0:00:04]} Qe8 {[%emt 0:04:52]} 15. Nd5 {[%emt 0:00:08]} Rc8 {[%emt 0:01:00]} 16. Nxe7 {[%emt 0:00:12]} Qxe7 {[%emt 0:00:14]} 17. Nc3 {[%emt 0:00:07]} Bxc4 {[%emt 0:10:57]} 18. b3 {[%emt 0:00:07]} Be6 {[%emt 0:02:49]} 19. Bxc6 {[%emt 0:00:07]} bxc6 {[%emt 0:00:08]} 20. Qe3 {[%emt 0:00:05]} Bh3 {[%emt 0:15:48]} 21. Qxa7 {[%emt 0:12:53]} f5 {[%emt 0:07:17]} 22. Qe3 {[%emt 0:05:14]} Qe6 {[%emt 0:02:55]} 23. f4 {[%emt 0:01:08]} Rce8 {[%emt 0:03:36]} 24. Rd3 {[%emt 0:12:51]} Rf7 {[%emt 0:08:08]} 25. Rad1 {[%emt 0:01:28]} g5 {[%emt 0:16:13]} 26. fxg5 {[%emt 0:19:54]} f4 {[%emt 0:00:09]} 27. gxf4 {[%emt 0:00:10]} Qg4+ {[%emt 0:08:47]} 28. Qg3 {[%emt 0:00:13]} Rxf4 {[%emt 0:01:23]} 29. gxh6+ {[%emt 0:01:21]} Kxh6 {[%emt 0:00:02]} 30. Qxg4 {[%emt 0:01:00]} Rxg4+ {[%emt 0:00:03]} 31. Rg3 {[%emt 0:00:17]} Reg8 {[%emt 0:04:41]} 32. Kf2 {[%emt 0:01:04]} Rf8+ {[%emt 0:01:01]} 33. Ke3 {[%emt 0:00:06]} Rxg3+ {[%emt 0:00:11]} 34. hxg3 {[%emt 0:00:01]} Kh5 {[%emt 0:01:04]} 35. Rh1 {[%emt 0:01:10]} Kg4 {[%emt 0:00:11]} 36. Ne4 {[%emt 0:00:06]} Bg2 {[%emt 0:00:31]} 37. Rh4+ {[%emt 0:00:10]} Kf5 {[%emt 0:00:01]} 38. Rh2 {[%emt 0:00:08] Kxe4+ Kxe4} 1-0